[Event "45th FIDE Womens Olympiad 2024"]
[Site "Budapest"]
[Date "2024.09.12"]
[Round "2.1"]
[White "Dronavalli, Harika"]
[Black "Movsesian, Julia"]
[Result "1-0"]
[ECO "A13"]
[WhiteElo "2502"]
[BlackElo "2198"]
[Annotator "TA"]
[PlyCount "107"]
[EventDate "2024.09.05"]
[EventType "team-tourn"]
[EventCountry "HUN"]
[SourceTitle "playchess.com"]
[Source "ChessBase"]
[SourceQuality "1"]
[WhiteTeam "India"]
[BlackTeam "Czech Republic"]
[WhiteTeamCountry "IND"]
[BlackTeamCountry "CZE"]
[TimeControl "40/5400+30:1800+30"]

{[%evp 26,107,0,0,0,0,0,0,0,0,70,68,89,68,137,139,125,93,184,33,63,54,85,54,60,0,0,-47,-22,-16,-15,-50,0,0,0,-26,38,27,43,-8,-18,-10,-21,-22,-35,-115,179,181,137,181,158,118,115,123,115,108,114,34,15,25,39,27,49,8,16,21,234,87,260,157,327,330,345,329,339,339,407,407,425,422,412,407,449,437]} 1. Nf3 {[%emt 0:01:21]} Nf6 {[%emt 0:01:01]} 2. c4 {[%emt 0:00:40]} e6 {[%emt 0:00:19]} 3. g3 {[%emt 0:00:25]} d5 {[%emt 0:00:19]} 4. Bg2 {[%emt 0:00:14]} d4 {[%emt 0:01:22]} 5. O-O {[%emt 0:03:25]} c5 {[%emt 0:02:12]} 6. e3 {[%emt 0:01:56]} Nc6 {[%emt 0:00:37] A13: English Opening: 1...e6.} 7. d3 {[%emt 0:02:04]} Bd6 {[%emt 0:02:07]} 8. Na3 {[%emt 0:02:38]} O-O {[%emt 0:05:48]} 9. exd4 {[%emt 0:01:50]} cxd4 {[%emt 0:01:26]} 10. Nc2 {[%emt 0:00:28]} e5 {[%emt 0:04:15]} 11. b4 {[%emt 0:06:57]} Re8 {[%emt 0:04:20]} 12. Re1 {[%emt 0:05:02]} a6 {[%emt 0:17:19]} 13. Rb1 {[%emt 0:04:00]} h6 {[%emt 0:01:42]} 14. a4 {[%emt 0:05:16]} Bf5 {[%emt 0:09:02]} 15. c5 {[%emt 0:10:35]} (15. Ba3 $5) 15... Bb8 {[%emt 0:00:52]} 16. Bb2 {[%emt 0:04:42]} Qc8 {[%emt 0:11:50]} 17. Ba1 $146 {[%emt 0:04:28]} ({Predecessor:} 17. Re2 Bh3 18. Qe1 Bxg2 19. Kxg2 Rd8 20. h3 Nd7 21. Ra1 f6 22. b5 Ne7 23. Bxd4 axb5 24. axb5 Rxa1 25. Qxa1 {½-½ Kahl,F (2383)-Mauro,L (2234) WC-2018-Q-00012}) 17... a5 {[%emt 0:11:11]} (17... Bc7 $11) 18. b5 $14 {[%emt 0:04:47]} Nd8 {[%emt 0:00:42]} 19. Rc1 {[%emt 0:00:54]} Bg4 {[%emt 0:06:56]} (19... Bh3 $1 $14) 20. Na3 $1 $16 {[%emt 0:06:04]} Qf5 {[%emt 0:01:10]} 21. Nc4 {[%emt 0:08:01]} Qh5 {[%emt 0:05:23]} (21... Ne6 $16) 22. Ncd2 $2 {[%emt 0:09:12]} (22. Nb6 $18 Ra7 23. h3 Bxf3 (23... Bxh3 $2 24. Nxe5 Qxd1 25. Rcxd1 $18) 24. Qxf3 Qxf3 25. Bxf3) 22... Ne6 $14 {[%emt 0:00:43]} 23. Qb3 {[%emt 0:02:12]} Bh3 {[%emt 0:01:28]} 24. Bxh3 {[%emt 0:06:16]} Qxh3 {[%emt 0:00:05]} 25. Qd1 {[%emt 0:00:17]} (25. Bb2 $14) 25... Rc8 {[%emt 0:03:54]} 26. Nf1 {[%emt 0:02:36]} (26. Nxe5 $2 Bxe5 27. Rxe5 Ng4 $17) (26. Nc4 $11 {is superior.} Rxc5 27. Nb6) 26... Qf5 {[%emt 0:01:29]} 27. Nh4 {[%emt 0:00:31]} Qg5 {[%emt 0:00:36]} 28. Nf3 {[%emt 0:02:25]} Qf5 {[%emt 0:00:03]} (28... Qg4 $15) 29. Nh4 $11 {[%emt 0:00:27]} Qg5 {[%emt 0:00:01]} 30. Qf3 {[%emt 0:00:42]} e4 {[%emt 0:02:17]} (30... Rxc5 $2 31. Qxb7 Rxc1 32. Nf3 Rxe1 33. Nxg5 hxg5 34. Qxa8 Rxa1 35. Qxb8+ Nf8 36. Qxe5 Rxa4 37. Nd2 $18 (37. Qxg5 Rb4 $18) (37. b6 N6d7 $18)) (30... Nxc5 $2 31. Rxc5 Rxc5 32. Qxb7 $18) (30... Bd6 $11 31. Nf5 Bxc5 (31... Rxc5 32. h4 $16)) 31. dxe4 $14 {[%emt 0:00:07]} Rxc5 {[%emt 0:00:17]} 32. Rxc5 {[%emt 0:01:15]} (32. Bb2 $14) 32... Qxc5 $11 {[%emt 0:00:06]} 33. e5 {[%emt 0:00:58]} Bxe5 {[%emt 0:00:34]} 34. Qxb7 {[%emt 0:00:25]} Rd8 {[%emt 0:00:49]} 35. Nf5 {[%emt 0:00:58]} ({White should play} 35. Qc6 $15 Bd6 36. Nf3) 35... Rb8 $2 {[%emt 0:03:59][%mdl 8192] [#]} (35... Nd7 $17 {Hoping for ...Bf6.} 36. Ne7+ Qxe7 37. Rxe5 Qf8) 36. Qc6 $1 $18 {[%emt 0:00:34]} Re8 {[%emt 0:01:19]} 37. Qxc5 {[%emt 0:02:52]} Nxc5 {[%emt 0:00:01]} 38. f4 {[%emt 0:00:35]} (38. Bxd4 Bxd4 39. Rxe8+ Nxe8 $11) (38. Nxd4 Nxa4 39. Nc6 Bxa1 40. Rxa1 Nb6) 38... Bc7 {[%emt 0:00:20] [#]} 39. Rxe8+ $1 (39. Rc1 $6 Bb6 40. Nd6 Rb8 $11) 39... Nxe8 {[%emt 0:00:01]} 40. Bxd4 {[%emt 0:01:30]} Nxa4 {[%emt 0:00:06]} 41. Ne7+ {[%emt 0:30:16]} ({Better is} 41. N1e3 $16) 41... Kf8 $14 {[%emt 0:30:16]} 42. Nd5 {[%emt 0:00:08]} Bb8 {[%emt 0:01:43]} 43. b6 {[%emt 0:00:00]} Nd6 {[%emt 0:00:00]} 44. Kf2 {[%emt 0:00:00]} Nb5 {[%emt 0:00:00]} 45. Ke3 {[%emt 0:00:00]} Bd6 $2 {[%emt 0:00:00]} (45... Nxd4 $11 {and Black stays safe.} 46. Kxd4 Nxb6 47. Nxb6 Ba7) 46. Kd3 {[%emt 0:00:00]} (46. b7 $18 {Black must now prevent Be5.} Nxd4 47. Kxd4) 46... f6 $2 {[%emt 0:00:00]} (46... Nxd4 $16 47. Kxd4 Nc5 (47... Bc5+ $2 48. Kc4 $18)) 47. Nd2 {[%emt 0:00:00]} Ke8 $2 {[%emt 0:00:00]} (47... Nxd4 $16 {was necessary.} 48. Kxd4 Bc5+ 49. Kc4 Bxb6) 48. Nc4 $18 {[%emt 0:00:00]} Kd7 {[%emt 0:00:00]} 49. b7 {[%emt 0:00:32]} ({Weaker is} 49. Nxa5 Ke6 (49... Nxd4 50. Kxd4 Bc5+ 51. Kc4 $19) 50. Nc7+ Nxc7 51. bxc7 Bxc7 $11) 49... Bb8 {[%emt 0:00:00]} 50. Nxa5 {[%emt 0:00:21]} Kd6 {[%emt 0:00:00]} 51. Nb4 {[%emt 0:00:31]} Nxd4 {[%emt 0:00:00]} 52. Kxd4 {[%emt 0:00:03]} Ba7+ {[%emt 0:00:01]} 53. Ke4 {[%emt 0:01:41]} g6 {[%emt 0:03:48]} 54. Nac6 {[%emt 0:03:19]} 1-0

[Event "45th FIDE Womens Olympiad 2024"]
[Site "Budapest"]
[Date "2024.09.12"]
[Round "2.1"]
[White "Aliu, Arlinda"]
[Black "Sele, Timea"]
[Result "1-0"]
[ECO "B13"]
[WhiteElo "1780"]
[BlackElo "1699"]
[Annotator "NA"]
[PlyCount "65"]
[EventDate "2024.09.05"]
[EventType "team-tourn"]
[EventCountry "HUN"]
[SourceTitle "playchess.com"]
[Source "ChessBase"]
[SourceQuality "1"]
[WhiteTeam "Kosovo"]
[BlackTeam "Liechtenstein"]
[WhiteTeamCountry "KOS"]
[BlackTeamCountry "LIE"]
[TimeControl "40/5400+30:1800+30"]

1. d4 d5 2. Bf4 c5 3. e3 Nc6 4. Nc3 cxd4 5. exd4 Bf5 6. Nf3 e6 7. a3 Bd6 8. Bg3 a6 9. Bd3 Bg4 10. Be2 Nge7 11. Ne5 Bf5 12. O-O O-O 13. Bg4 f6 14. Nxc6 bxc6 15. Bxd6 Qxd6 16. Na4 Rab8 17. b4 Qf4 18. Bxf5 Nxf5 19. c3 e5 20. Nc5 Rfe8 21. dxe5 fxe5 22. Nxa6 Rbd8 23. Nc5 Rd6 24. g3 Rg6 25. Qh5 Qg5 26. Qxg5 Rxg5 27. f4 exf4 28. Rxf4 Re3 29. c4 d4 30. Raf1 g6 31. Ne4 Rh5 32. Nf6+ Kg7 33. Nxh5+ 1-0

[Event "45th FIDE Womens Olympiad 2024"]
[Site "Budapest"]
[Date "2024.09.12"]
[Round "2.2"]
[White "Kanakova, Natalie"]
[Black "Divya Deshmukh"]
[Result "0-1"]
[ECO "B15"]
[WhiteElo "2145"]
[BlackElo "2483"]
[Annotator "TA"]
[PlyCount "82"]
[EventDate "2024.09.05"]
[EventType "team-tourn"]
[EventCountry "HUN"]
[SourceTitle "playchess.com"]
[Source "ChessBase"]
[SourceQuality "1"]
[WhiteTeam "Czech Republic"]
[BlackTeam "India"]
[WhiteTeamCountry "CZE"]
[BlackTeamCountry "IND"]
[TimeControl "40/5400+30:1800+30"]

{[%evp 16,82,1,0,10,10,15,0,21,11,14,18,14,7,21,0,0,0,0,0,0,-22,-11,0,-10,-19,-12,-5,0,-202,-205,-204,-212,-208,-210,-322,-320,-298,-293,-298,-304,-400,-400,-408,-397,-502,-321,-531,-537,-247,-507,-522,-388,-397,-411,-401,-392,-508,-509,-630,-611,-603,-633,-619,-627,-599,-579,-1816,-1662]} 1. e4 {[%emt 0:00:04]} c6 {[%emt 0:00:32]} 2. d4 {[%emt 0:00:54]} d5 {[%emt 0:00:42]} 3. Nc3 {[%emt 0:04:04]} dxe4 {[%emt 0:00:32]} 4. Nxe4 {[%emt 0:00:06]} Nf6 {[%emt 0:00:02]} 5. Nxf6+ {[%emt 0:06:12]} exf6 {[%emt 0:00:11]} 6. Nf3 {[%emt 0:01:39]} Bd6 {[%emt 0:00:49]} 7. Bd3 {[%emt 0:01:35]} O-O {[%emt 0:01:17]} 8. O-O {[%emt 0:00:33]} Bg4 {[%emt 0:00:34]} 9. c3 {[%emt 0:01:28]} Bc7 {[%emt 0:04:28]} 10. h3 {[%emt 0:13:09]} Bh5 {[%emt 0:01:05]} 11. Bc2 {[%emt 0:02:44]} Qd5 {[%emt 0:06:57] The position is equal.} 12. Qd3 {[%emt 0:03:50]} Bg6 {[%emt 0:02:37] Active counter play!} 13. Qe2 {[%emt 0:02:01]} Nd7 {[%emt 0:05:26]} 14. Bxg6 {[%emt 0:04:08]} hxg6 {[%emt 0:00:04]} 15. Re1 {[%emt 0:00:22]} Rfd8 {[%emt 0:01:01]} 16. c4 {[%emt 0:21:04]} Qh5 {[%emt 0:05:46]} 17. Be3 {[%emt 0:10:49]} Nf8 {[%emt 0:01:07]} 18. Rac1 {[%emt 0:03:03]} Ne6 {[%emt 0:00:54]} 19. Red1 {[%emt 0:03:10]} Rd7 {[%emt 0:04:28]} 20. Rc3 {[%emt 0:05:40]} Rad8 {[%emt 0:02:37]} 21. Rcd3 {[%emt 0:00:28]} Qf5 {[%emt 0:01:00]} 22. Nh4 $2 {[%emt 0:10:33] Black continues to play with concentration.} (22. g4 $11 Nf4 23. Bxf4 Qxf4 24. Kg2) 22... Qe4 $1 $19 {[%emt 0:00:43][%csl LRd4,LRh4]} 23. Qg4 {[%emt 0:02:03]} f5 {[%emt 0:00:27]} 24. Qxe4 {[%emt 0:00:57]} fxe4 {[%emt 0:00:01]} 25. Rb3 {[%emt 0:01:46]} (25. R3d2 $142 Ba5 26. Rc2) 25... Nxd4 {[%emt 0:00:25]} 26. Bxd4 {[%emt 0:00:17]} Rxd4 {[%emt 0:00:07]} 27. Rxd4 {[%emt 0:00:26]} Rxd4 {[%emt 0:00:02][%cal Rd4d1][%mdl 4096] [#] Endgame. KRB-KRN} 28. g3 {[%emt 0:00:44]} Rxc4 {[%emt 0:00:29]} 29. Rxb7 {[%emt 0:00:18]} Bb6 {[%emt 0:00:31]} 30. Re7 {[%emt 0:00:50]} Rc1+ {[%emt 0:00:07]} 31. Kg2 $2 {[%emt 0:00:14]} (31. Kh2) 31... Rc2 {[%emt 0:00:04][%csl LRb2,LRf2] [#] Strongly threatening ...e3.} 32. Re8+ {[%emt 0:00:11]} Kh7 {[%emt 0:00:01]} 33. Rxe4 {[%emt 0:00:08]} Rxf2+ {[%emt 0:00:03]} 34. Kh1 {[%emt 0:00:10]} g5 {[%emt 0:00:03] Inhibits Rf4.} ({Don't play} 34... Rxb2 35. Nf3 f6 (35... Rxa2 36. Ng5+ Kh6 37. Nxf7+ Kh7 38. Ng5+ Kh6 39. Nf7+ Kh7 40. Ng5+ Kh6 41. Nf7+ $11) 36. Rc4) 35. Ng2 {[%emt 0:00:28]} Rxb2 {[%emt 0:00:33]} 36. a4 {[%emt 0:00:13]} f5 {[%emt 0:02:44] Black is clearly winning.} 37. Rc4 {[%emt 0:00:40]} Rb1+ {[%emt 0:00:12]} 38. Kh2 {[%emt 0:00:05]} Bg1+ {[%emt 0:00:02]} 39. Kh1 {[%emt 0:00:05]} Bf2+ {[%emt 0:00:02]} 40. Kh2 {[%emt 0:00:06]} Rb3 {[%emt 0:00:03]} 41. g4 {[%emt 0:06:06]} Bg3+ {[%emt 0:00:09] Weighted Error Value: White=0.53/Black=0.13 (very precise) .  Loses game:     	White=1     	---        Mistake:       	White=2     	---        Inaccurate:     	White=1     	Black=1      OK:         	White=7     	Black=17     Best:        	White=2     	Black=2} 0-1

[Event "45th FIDE Womens Olympiad 2024"]
[Site "Budapest"]
[Date "2024.09.12"]
[Round "2.3"]
[White "Vantika Agrawal"]
[Black "Rodshtein, Tereza"]
[Result "1-0"]
[ECO "D07"]
[WhiteElo "2370"]
[BlackElo "2149"]
[Annotator "RC"]
[PlyCount "61"]
[EventDate "2024.09.05"]
[EventType "team-tourn"]
[EventCountry "HUN"]
[SourceTitle "playchess.com"]
[Source "ChessBase"]
[SourceQuality "1"]
[WhiteTeam "India"]
[BlackTeam "Czech Republic"]
[WhiteTeamCountry "IND"]
[BlackTeamCountry "CZE"]
[TimeControl "40/5400+30:1800+30"]

1. d4 {[%emt 0:00:25]} d5 {[%emt 0:00:26]} 2. Nf3 {[%emt 0:00:10]} Nc6 {[%emt 0:01:06]} 3. c4 {[%emt 0:01:00]} Bg4 {[%emt 0:01:33]} 4. cxd5 {[%emt 0:02:50]} Bxf3 {[%emt 0:00:17]} 5. gxf3 {[%emt 0:00:38]} Qxd5 {[%emt 0:00:13]} 6. e3 {[%emt 0:00:39]} e5 {[%emt 0:00:19]} 7. Nc3 {[%emt 0:00:27]} Bb4 {[%emt 0:00:09]} 8. Bd2 {[%emt 0:00:59]} Bxc3 {[%emt 0:00:09]} 9. bxc3 {[%emt 0:00:18]} Qd6 {[%emt 0:06:15]} 10. Qb3 {[%emt 0:11:14]} O-O-O {[%emt 0:09:01]} 11. Rb1 {[%emt 0:12:54]} b6 {[%emt 0:00:20]} 12. Qxf7 {[%emt 0:02:05]} Kb8 {[%emt 0:00:07]} 13. Bc4 {[%emt 0:33:29]} exd4 {[%emt 0:24:50]} 14. cxd4 {[%emt 0:01:57]} Nf6 {[%emt 0:06:23]} 15. O-O {[%emt 0:03:49]} Rhe8 {[%emt 0:08:42]} 16. Bb5 {[%emt 0:01:52]} Re5 {[%emt 0:11:56]} 17. dxe5 {[%emt 0:23:15]} Nxe5 {[%emt 0:00:03]} 18. Bb4 {[%emt 0:00:21]} c5 {[%emt 0:05:39]} 19. Bxc5 {[%emt 0:00:37]} Qxc5 {[%emt 0:01:42]} 20. Qe6 {[%emt 0:00:07]} Nxf3+ {[%emt 0:01:57]} 21. Kg2 {[%emt 0:00:16]} Rd6 {[%emt 0:04:59]} 22. Qh3 {[%emt 0:01:08]} Ng5 {[%emt 0:02:24]} 23. Qg3 {[%emt 0:00:43]} Nfe4 {[%emt 0:07:25]} 24. Qf4 {[%emt 0:00:33]} Nd2 {[%emt 0:00:06]} 25. Rfd1 {[%emt 0:00:41]} Qd5+ {[%emt 0:00:26]} 26. f3 {[%emt 0:00:31]} Ngxf3 {[%emt 0:00:20]} 27. e4 {[%emt 0:00:20]} Qd4 {[%emt 0:01:55]} 28. Rbc1 {[%emt 0:00:37]} Ne5 {[%emt 0:02:55]} 29. Ba6 {[%emt 0:00:32]} Rd8 {[%emt 0:01:02]} 30. Rc2 {[%emt 0:00:21]} g5 {[%emt 0:02:12]} 31. Rcxd2 {[%emt 0:00:11]} 1-0

[Event "45th FIDE Womens Olympiad 2024"]
[Site "Budapest"]
[Date "2024.09.12"]
[Round "2.4"]
[White "Korenova, Martina"]
[Black "Tania, Sachdev"]
[Result "1/2-1/2"]
[ECO "C77"]
[WhiteElo "2104"]
[BlackElo "2386"]
[Annotator "TA"]
[PlyCount "67"]
[EventDate "2024.09.05"]
[EventType "team-tourn"]
[EventCountry "HUN"]
[SourceTitle "playchess.com"]
[Source "ChessBase"]
[SourceQuality "1"]
[WhiteTeam "Czech Republic"]
[BlackTeam "India"]
[WhiteTeamCountry "CZE"]
[BlackTeamCountry "IND"]
[TimeControl "40/5400+30:1800+30"]

{[%evp 10,67,39,3,4,-10,11,4,10,-6,16,12,18,12,16,14,15,16,24,15,16,0,5,0,0,0,5,2,0,0,29,13,35,33,29,27,33,31,43,23,37,0,0,0,0,0,0,0,0,0,0,0,0,0,0,0,0,0,0,0]} 1. e4 {[%emt 0:00:10]} e5 {[%emt 0:02:06]} 2. Nf3 {[%emt 0:00:09]} Nc6 {[%emt 0:00:04]} 3. Bb5 {[%emt 0:00:08]} a6 {[%emt 0:00:07]} 4. Ba4 {[%emt 0:00:13]} Nf6 {[%emt 0:00:16]} 5. d3 {[%emt 0:00:32]} d6 {[%emt 0:00:59]} 6. c4 {[%emt 0:00:36]} Be7 {[%emt 0:04:39]} 7. d4 {[%emt 0:03:52]} exd4 {[%emt 0:05:01]} ({Of course not} 7... Nxe4 $6 8. d5 $16) 8. Nxd4 {[%emt 0:03:20]} Bd7 {[%emt 0:00:14]} 9. Nc3 {[%emt 0:01:02]} O-O {[%emt 0:04:05]} 10. Nxc6 {[%emt 0:01:17]} Bxc6 {[%emt 0:03:48]} 11. Bxc6 {[%emt 0:01:13]} bxc6 {[%emt 0:00:05]} 12. O-O {[%emt 0:00:44]} Nd7 {[%emt 0:03:54]} 13. Qa4 {[%emt 0:05:10]} c5 {[%emt 0:05:53]} 14. Nd5 {[%emt 0:07:43]} Bf6 {[%emt 0:07:06]} 15. Nxf6+ {[%emt 0:12:02]} Nxf6 {[%emt 0:00:20]} 16. Re1 {[%emt 0:00:56]} Re8 {[%emt 0:05:46]} 17. Bg5 {[%emt 0:07:44]} h6 {[%emt 0:05:07]} 18. Bxf6 {[%emt 0:01:04]} Qxf6 {[%emt 0:00:03]} 19. Re2 {[%emt 0:00:42]} Rab8 {[%emt 0:11:19]} 20. Rae1 {[%emt 0:01:09]} Re7 {[%emt 0:05:19]} 21. b3 {[%emt 0:08:18]} Rb6 $1 {[%emt 0:00:30]} 22. Qa5 {[%emt 0:03:02]} Qe5 {[%emt 0:05:20]} 23. g3 {[%emt 0:05:27]} g5 {[%emt 0:08:09]} 24. Qd2 {[%emt 0:02:07]} Qd4 {[%emt 0:02:01]} 25. Qe3 {[%emt 0:05:13]} Qxe3 {[%emt 0:03:21] The position is equal.} 26. Rxe3 $11 {[%emt 0:00:07][%mdl 4096] Endgame. KRR-KRR} f6 {[%emt 0:02:25]} 27. f4 {[%emt 0:12:24]} Kf7 {[%emt 0:00:29]} 28. Kf2 {[%emt 0:01:32]} Rb8 {[%emt 0:06:43]} 29. e5 {[%emt 0:02:07]} dxe5 {[%emt 0:02:25]} (29... g4 {keeps more tension.} 30. h3 gxh3 31. exd6 Rxe3 32. dxc7 Rexb3 33. axb3 Rc8) 30. fxe5 {[%emt 0:00:06]} Rbe8 {[%emt 0:01:31]} 31. exf6 {[%emt 0:02:55]} Rxe3 {[%emt 0:00:10]} 32. Rxe3 {[%emt 0:00:02]} Rxe3 {[%emt 0:00:03]} 33. Kxe3 {[%emt 0:00:04] [#] Threatens to win with Ke4.} Kxf6 {[%emt 0:00:05]} 34. Ke4 {[%emt 0:01:16] Weighted Error Value: White=0.08 (flawless) /Black=0.05 (flawless) .  Inaccurate:     	White=1     	Black=1      OK:         	White=13    	Black=12     Best:        	---       	Black=1      Strong:       	---       	Black=1} 1/2-1/2

[Event "45th FIDE Womens Olympiad 2024"]
[Site "Budapest"]
[Date "2024.09.12"]
[Round "2.5"]
[White "Ortiz Verdezoto, Anahi"]
[Black "Hoang, Thanh Trang"]
[Result "0-1"]
[ECO "D37"]
[WhiteElo "2229"]
[BlackElo "2351"]
[Annotator "TA"]
[PlyCount "56"]
[EventDate "2024.09.05"]
[EventType "team-tourn"]
[EventCountry "HUN"]
[SourceTitle "playchess.com"]
[Source "ChessBase"]
[SourceQuality "1"]
[WhiteTeam "Ecuador"]
[BlackTeam "Hungary"]
[WhiteTeamCountry "ECU"]
[BlackTeamCountry "HUN"]
[TimeControl "40/5400+30:1800+30"]

{[%evp 9,56,24,27,16,33,32,37,27,25,26,36,27,28,29,37,0,29,0,0,0,7,0,0,0,0,10,12,0,0,0,0,-11,0,-14,-10,-33,-18,-99,-28,-154,-160,-901,-935,-964,-992,-1000,-922,-970,-964]} 1. d4 {[%emt 0:00:07]} d5 {[%emt 0:00:24]} 2. c4 {[%emt 0:00:57]} e6 {[%emt 0:00:17]} 3. Nc3 {[%emt 0:01:10]} a6 {[%emt 0:00:37]} 4. cxd5 {[%emt 0:00:11]} exd5 {[%emt 0:00:11]} 5. Nf3 {[%emt 0:00:23]} Nf6 {[%emt 0:00:27]} 6. Bg5 {[%emt 0:03:28]} Be6 {[%emt 0:00:41]} 7. e3 {[%emt 0:04:33]} Nbd7 {[%emt 0:00:44]} 8. Bd3 {[%emt 0:00:11] White is slightly better.} Bd6 {[%emt 0:01:23]} 9. O-O {[%emt 0:02:58]} c6 {[%emt 0:00:59]} 10. Bf4 {[%emt 0:04:01]} Qc7 {[%emt 0:01:07]} 11. Bxd6 {[%emt 0:00:07]} Qxd6 {[%emt 0:00:08]} 12. Rb1 {[%emt 0:02:57]} O-O {[%emt 0:05:35]} 13. b4 {[%emt 0:00:17]} b5 {[%emt 0:02:59]} 14. a4 {[%emt 0:05:54][%cal Ba2a4,Ba4a5][%mdl 32]} Nb6 {[%emt 0:01:10]} 15. a5 {[%emt 0:00:05]} Nc4 {[%emt 0:00:16]} 16. h3 {[%emt 0:01:56]} h6 {[%emt 0:02:53]} 17. Re1 {[%emt 0:05:10]} Rfe8 {[%emt 0:01:37]} 18. Re2 {[%emt 0:23:34]} Re7 {[%emt 0:03:52]} 19. Qe1 {[%emt 0:05:15]} Rae8 {[%emt 0:03:09]} 20. Na2 {[%emt 0:00:20]} Ne4 {[%emt 0:11:57]} 21. Nc1 {[%emt 0:01:00]} Bf5 {[%emt 0:01:52]} 22. Rb3 {[%emt 0:14:01]} Qf6 {[%emt 0:03:36][%cal Of5h3] Threatening ...Bxh3!} 23. Kh2 {[%emt 0:01:57]} (23. Nh2 $11) 23... Bg6 {[%emt 0:04:57]} (23... g5 $17 {[%cal Of5h3] White must now prevent ...Bxh3!} 24. Bxe4 Bxe4 (24... Rxe4 25. Nd2 $17)) 24. Bc2 {[%emt 0:01:41]} (24. Ra2 $11) 24... Bh5 $17 {[%emt 0:01:52] Black is much more active.} 25. Nd3 $2 {[%emt 0:02:17] [#]} (25. Bxe4 $17 Rxe4 (25... dxe4 26. Nd2 $17) 26. Ng1) 25... Bxf3 $19 {[%emt 0:03:52] Black is clearly winning.} 26. gxf3 {[%emt 0:00:03]} Ng5 {[%emt 0:01:34][%cal Be4g5,Bg5f3,Bf3d4][%mdl 32] Excellent horsemanship.} 27. Qd1 {[%emt 0:06:10]} Nxf3+ {[%emt 0:00:44]} 28. Kg2 {[%emt 0:04:13] [#]} Nxd4 $1 {[%emt 0:00:56][%mdl 512] Weighted Error Value: White=0.43/Black=0.09 (flawless) .  Loses game:     	White=1     	---        Mistake:       	White=2     	Black=1      Inaccurate:     	White=1     	Black=1      OK:         	White=6     	Black=8      Best:        	---       	Black=1} 0-1

[Event "45th FIDE Womens Olympiad 2024"]
[Site "Budapest"]
[Date "2024.09.12"]
[Round "2.5"]
[White "Maly Inthavong"]
[Black "Ghitza, Elena"]
[Result "1-0"]
[ECO "A43"]
[WhiteElo "1633"]
[BlackElo "1817"]
[Annotator "NA"]
[PlyCount "99"]
[EventDate "2024.09.05"]
[EventType "team-tourn"]
[EventCountry "HUN"]
[SourceTitle "playchess.com"]
[Source "ChessBase"]
[SourceQuality "1"]
[WhiteTeam "Laos"]
[BlackTeam "Malta"]
[WhiteTeamCountry "LAO"]
[BlackTeamCountry "MLT"]
[TimeControl "40/5400+30:1800+30"]

1. e4 d6 2. d4 Nf6 3. Nc3 g6 4. Nf3 Bg7 5. h3 O-O 6. Bd3 c5 7. d5 e6 8. Bg5 h6 9. Bh4 a6 10. a4 Nbd7 11. O-O Qc7 12. Qd2 c4 13. Be2 e5 14. Qe3 g5 15. Bg3 Rb8 16. h4 Ng4 17. Qd2 gxh4 18. Nxh4 Ndf6 19. f3 Qc5+ 20. Bf2 Nxf2 21. Rxf2 Nh5 22. Kf1 Kh7 23. Nd1 Bf6 24. Nf5 Bxf5 25. exf5 Ng3+ 26. Kg1 Nxf5 27. b4 cxb3 28. cxb3 Bh4 29. Bd3 Bxf2+ 30. Nxf2 Qc8 31. Rc1 Qd7 32. Ng4 Qd8 33. Qxh6+ Kg8 34. Nf6+ Qxf6 35. Qxf6 Ng7 36. Qh6 f5 37. Rc7 Rf7 38. Rxf7 Kxf7 39. Qxd6 Re8 40. Bc4 Re7 41. Qb6 Ke8 42. Qg6+ Kd8 43. Qf6 Kd7 44. d6 Re8 45. Qxg7+ Kxd6 46. Qxb7 e4 47. Qxa6+ Kc7 48. a5 e3 49. Kf1 f4 50. Qb6+ 1-0